[Event "*** Titled Tuesday Blitz"]
[Site "Chess.com"]
[Date "2020.11.03"]
[Round "10"]
[White "boasovietica"]
[Black "Fandorine"]
[Result "0-1"]
[WhiteElo "2566"]
[BlackElo "2833"]
[TimeControl "180+1"]
[EndTime "11:59:09 PST"]
[Termination "Fandorine won on time"]

1. e4 {[%clk 0:03:00.9]} 1... c5 {[%clk 0:02:57.8]} 2. Nf3 {[%clk 0:03:00.3]}
2... e6 {[%clk 0:02:57.9]} 3. d4 {[%clk 0:02:58.7]} 3... cxd4 {[%clk 0:02:58.8]}
4. Nxd4 {[%clk 0:02:59.4]} 4... Nc6 {[%clk 0:02:59]} 5. Nb3 {[%clk 0:02:58.3]}
5... Nf6 {[%clk 0:02:58.4]} 6. Nc3 {[%clk 0:02:57.8]} 6... Bb4 {[%clk
0:02:58.8]} 7. Bd3 {[%clk 0:02:52.3]} 7... d5 {[%clk 0:02:59.1]} 8. exd5 {[%clk
0:02:53.2]} 8... Nxd5 {[%clk 0:02:59.1]} 9. Bd2 {[%clk 0:02:53.7]} 9... Nxc3
{[%clk 0:02:57.8]} 10. bxc3 {[%clk 0:02:54.6]} 10... Bd6 {[%clk 0:02:57.5]} 11.
Qh5 {[%clk 0:02:41.4]} 11... Ne5 {[%clk 0:02:47.6]} 12. Be4 {[%clk 0:02:08.1]}
12... Ng6 {[%clk 0:02:37.2]} 13. Bg5 {[%clk 0:01:58.9]} 13... Qc7 {[%clk
0:02:35.2]} 14. O-O {[%clk 0:01:58.1]} 14... O-O {[%clk 0:02:33.5]} 15. Rad1
{[%clk 0:01:36.6]} 15... Bf4 {[%clk 0:02:19]} 16. Rd3 {[%clk 0:01:19.4]} 16...
Bxg5 {[%clk 0:02:16.2]} 17. Qxg5 {[%clk 0:01:19]} 17... h6 {[%clk 0:02:16.8]}
18. Qd2 {[%clk 0:01:10.3]} 18... f5 {[%clk 0:02:10]} 19. Bf3 {[%clk 0:01:04.5]}
19... Ne5 {[%clk 0:02:10.1]} 20. Rd4 {[%clk 0:00:52.7]} 20... Nxf3+ {[%clk
0:02:07.1]} 21. gxf3 {[%clk 0:00:52.8]} 21... e5 {[%clk 0:02:07.4]} 22. Rd6
{[%clk 0:00:48.7]} 22... Qf7 {[%clk 0:02:05.8]} 23. Nc5 {[%clk 0:00:44.2]} 23...
b6 {[%clk 0:01:59.1]} 24. Nd7 {[%clk 0:00:42.3]} 24... Bxd7 {[%clk 0:01:56.6]}
25. Rxd7 {[%clk 0:00:41.9]} 25... Qxa2 {[%clk 0:01:52.2]} 26. Re1 {[%clk
0:00:41]} 26... Qe6 {[%clk 0:01:48.1]} 27. Rd6 {[%clk 0:00:39.9]} 27... Qe7
{[%clk 0:01:37.9]} 28. Qd5+ {[%clk 0:00:39.2]} 28... Kh7 {[%clk 0:01:36.3]} 29.
Rxe5 {[%clk 0:00:35.6]} 29... Qg5+ {[%clk 0:01:36.7]} 30. Kf1 {[%clk 0:00:34.4]}
30... Rad8 {[%clk 0:01:37.1]} 31. Ree6 {[%clk 0:00:18.7]} 31... Rxd6 {[%clk
0:01:26.6]} 32. Rxd6 {[%clk 0:00:17.9]} 32... Qc1+ {[%clk 0:01:22.8]} 33. Kg2
{[%clk 0:00:17.8]} 33... Qxc2 {[%clk 0:01:23.2]} 34. Qe5 {[%clk 0:00:13.5]}
34... Qb3 {[%clk 0:01:02.9]} 35. Rd7 {[%clk 0:00:08.7]} 35... Rf7 {[%clk
0:01:03.1]} 36. Rd8 {[%clk 0:00:07.3]} 36... Rf6 {[%clk 0:01:02.6]} 37. h4
{[%clk 0:00:04]} 37... Rg6+ {[%clk 0:00:58.9]} 38. Kh2 {[%clk 0:00:03.6]} 38...
Qb1 {[%clk 0:00:53.4]} 0-1

[Event "*** Titled Tuesday Blitz"]
[Site "Chess.com"]
[Date "2020.11.03"]
[Round "10"]
[White "Sergienko_Sergey"]
[Black "HanSchut"]
[Result "1-0"]
[WhiteElo "2320"]
[BlackElo "2197"]
[TimeControl "180+1"]
[EndTime "11:59:16 PST"]
[Termination "Sergienko_Sergey won by resignation"]

1. e4 {[%clk 0:02:59.5]} 1... c5 {[%clk 0:02:59.2]} 2. Nf3 {[%clk 0:02:58.6]}
2... d6 {[%clk 0:02:59.1]} 3. d4 {[%clk 0:02:58]} 3... cxd4 {[%clk 0:02:59.6]}
4. Nxd4 {[%clk 0:02:57.5]} 4... Nf6 {[%clk 0:03:00.3]} 5. Nc3 {[%clk 0:02:57.4]}
5... a6 {[%clk 0:02:59.5]} 6. Bg5 {[%clk 0:02:56.6]} 6... e6 {[%clk 0:02:59.8]}
7. Qf3 {[%clk 0:02:54.7]} 7... Nbd7 {[%clk 0:02:56.5]} 8. O-O-O {[%clk
0:02:53.1]} 8... Qc7 {[%clk 0:02:51.8]} 9. Qg3 {[%clk 0:02:49]} 9... b5 {[%clk
0:02:49.4]} 10. a3 {[%clk 0:02:38.8]} 10... Bb7 {[%clk 0:02:46.9]} 11. f3 {[%clk
0:02:09.1]} 11... O-O-O {[%clk 0:02:43.3]} 12. Be2 {[%clk 0:02:03.4]} 12... Kb8
{[%clk 0:02:43.3]} 13. Rhe1 {[%clk 0:02:00.5]} 13... Rc8 {[%clk 0:02:42.1]} 14.
Kb1 {[%clk 0:01:53.9]} 14... Be7 {[%clk 0:02:36]} 15. Be3 {[%clk 0:01:44.6]}
15... Ne5 {[%clk 0:02:17.3]} 16. Qf2 {[%clk 0:01:37.3]} 16... Nc4 {[%clk
0:02:10.5]} 17. Bxc4 {[%clk 0:01:36.1]} 17... Qxc4 {[%clk 0:02:06.8]} 18. Nb3
{[%clk 0:01:34.1]} 18... b4 {[%clk 0:01:37.1]} 19. Na5 {[%clk 0:01:08.5]} 19...
bxc3 {[%clk 0:01:34.8]} 20. Nxc4 {[%clk 0:01:05.4]} 20... Rxc4 {[%clk
0:01:35.7]} 21. b3 {[%clk 0:01:01.9]} 21... Rc6 {[%clk 0:01:31.4]} 22. Bd4
{[%clk 0:00:49.4]} 22... Rhc8 {[%clk 0:01:28.3]} 23. e5 {[%clk 0:00:46.2]} 23...
dxe5 {[%clk 0:01:22.2]} 24. Bxe5+ {[%clk 0:00:44.3]} 24... Ka8 {[%clk
0:01:22.4]} 25. Bxf6 {[%clk 0:00:38.8]} 25... gxf6 {[%clk 0:01:11.7]} 26. Rd7
{[%clk 0:00:35.4]} 26... Bc5 {[%clk 0:00:43.3]} 27. Qh4 {[%clk 0:00:32.7]} 27...
Rb6 {[%clk 0:00:41.3]} 28. Ka2 {[%clk 0:00:25.3]} 28... Bd5 {[%clk 0:00:37.1]}
29. Qxf6 {[%clk 0:00:19.1]} 29... Rcb8 {[%clk 0:00:18.7]} 30. Rxd5 {[%clk
0:00:17.5]} 30... exd5 {[%clk 0:00:18.4]} 31. Qxf7 {[%clk 0:00:17.3]} 31... d4
{[%clk 0:00:16.8]} 32. Qd5+ {[%clk 0:00:16.4]} 1-0

[Event "*** Titled Tuesday Blitz"]
[Site "Chess.com"]
[Date "2020.11.03"]
[Round "10"]
[White "zurzan"]
[Black "ciucas1892"]
[Result "0-1"]
[WhiteElo "2060"]
[BlackElo "2244"]
[TimeControl "180+1"]
[EndTime "11:59:16 PST"]
[Termination "ciucas1892 won by resignation"]

1. f4 {[%clk 0:03:00.9]} 1... g6 {[%clk 0:02:47.8]} 2. Nf3 {[%clk 0:03:00.5]}
2... Bg7 {[%clk 0:02:48.7]} 3. g3 {[%clk 0:03:01.3]} 3... d5 {[%clk 0:02:48.6]}
4. Bg2 {[%clk 0:03:02.2]} 4... c5 {[%clk 0:02:49.2]} 5. O-O {[%clk 0:03:03.1]}
5... Nf6 {[%clk 0:02:49.7]} 6. d3 {[%clk 0:03:04]} 6... O-O {[%clk 0:02:49.7]}
7. c3 {[%clk 0:03:04.9]} 7... Nc6 {[%clk 0:02:49.9]} 8. Qc2 {[%clk 0:03:05.8]}
8... Qb6 {[%clk 0:02:41.8]} 9. h3 {[%clk 0:03:00.6]} 9... Rd8 {[%clk 0:02:33]}
10. Na3 {[%clk 0:02:57.9]} 10... h6 {[%clk 0:02:30]} 11. Kh2 {[%clk 0:02:56.8]}
11... Be6 {[%clk 0:02:29.2]} 12. e4 {[%clk 0:02:53.4]} 12... dxe4 {[%clk
0:02:21.9]} 13. dxe4 {[%clk 0:02:54.3]} 13... Qa6 {[%clk 0:02:21.1]} 14. Be3
{[%clk 0:02:45.4]} 14... Qd3 {[%clk 0:01:59]} 15. Qxd3 {[%clk 0:02:32.4]} 15...
Rxd3 {[%clk 0:01:59.9]} 16. Bxc5 {[%clk 0:02:31.8]} 16... Nxe4 {[%clk
0:01:59.5]} 17. Bg1 {[%clk 0:02:24.7]} 17... Rad8 {[%clk 0:01:52.8]} 18. Nc2
{[%clk 0:01:55.2]} 18... Nd2 {[%clk 0:01:45]} 19. Nxd2 {[%clk 0:01:51.7]} 19...
Rxd2 {[%clk 0:01:45.9]} 20. Rac1 {[%clk 0:01:30.1]} 20... Bxa2 {[%clk
0:01:32.7]} 21. Rf2 {[%clk 0:01:28.3]} 21... Rxf2 {[%clk 0:01:29]} 22. Bxf2
{[%clk 0:01:29.2]} 22... Rd2 {[%clk 0:01:29.2]} 23. Be3 {[%clk 0:01:17.4]} 23...
Re2 {[%clk 0:01:23.4]} 24. Nb4 {[%clk 0:01:03.8]} 24... Nxb4 {[%clk 0:01:13.5]}
25. cxb4 {[%clk 0:00:59.1]} 25... Rxe3 {[%clk 0:01:11]} 26. Bxb7 {[%clk
0:00:57.3]} 26... Bxb2 {[%clk 0:01:09.9]} 27. Rc8+ {[%clk 0:00:55.8]} 27... Kg7
{[%clk 0:01:09.8]} 28. g4 {[%clk 0:00:54.7]} 28... Re2+ {[%clk 0:01:07.8]} 29.
Kg3 {[%clk 0:00:54.7]} 29... g5 {[%clk 0:01:06.1]} 30. f5 {[%clk 0:00:45.9]}
30... Be5+ {[%clk 0:01:01.5]} 31. Kf3 {[%clk 0:00:45.5]} 31... Rb2 {[%clk
0:00:59.3]} 32. Bc6 {[%clk 0:00:29.1]} 32... Rxb4 {[%clk 0:00:51]} 33. Rd8
{[%clk 0:00:21.7]} 33... a5 {[%clk 0:00:48.2]} 34. Rd2 {[%clk 0:00:18.9]} 34...
Bb3 {[%clk 0:00:44.1]} 35. Be4 {[%clk 0:00:10.4]} 35... a4 {[%clk 0:00:43.7]}
36. Bb1 {[%clk 0:00:10.8]} 36... a3 {[%clk 0:00:43.7]} 37. Ke2 {[%clk
0:00:08.2]} 37... Bc4+ {[%clk 0:00:43.1]} 38. Kd1 {[%clk 0:00:07.2]} 38... Rxb1+
{[%clk 0:00:42.7]} 39. Kc2 {[%clk 0:00:07.6]} 39... Rb2+ {[%clk 0:00:42.5]} 40.
Kc1 {[%clk 0:00:07.5]} 40... Rxd2 {[%clk 0:00:43.4]} 41. Kxd2 {[%clk 0:00:07.7]}
41... a2 {[%clk 0:00:44.3]} 0-1

[Event "*** Titled Tuesday Blitz"]
[Site "Chess.com"]
[Date "2020.11.03"]
[Round "10"]
[White "Vesper2018"]
[Black "swimmerchess"]
[Result "0-1"]
[WhiteElo "2628"]
[BlackElo "2850"]
[TimeControl "180+1"]
[EndTime "11:59:20 PST"]
[Termination "swimmerchess won by resignation"]

1. e4 {[%clk 0:03:00.9]} 1... c5 {[%clk 0:03:00.1]} 2. Nc3 {[%clk 0:03:00.7]}
2... a6 {[%clk 0:03:00]} 3. Nf3 {[%clk 0:02:56.9]} 3... b5 {[%clk 0:03:00.2]} 4.
d4 {[%clk 0:02:56.3]} 4... cxd4 {[%clk 0:03:01.1]} 5. Nxd4 {[%clk 0:02:56.7]}
5... Bb7 {[%clk 0:03:02]} 6. g3 {[%clk 0:02:52.9]} 6... b4 {[%clk 0:03:00.9]} 7.
Nd5 {[%clk 0:02:50.1]} 7... e6 {[%clk 0:03:00.9]} 8. Bg2 {[%clk 0:02:33.8]} 8...
exd5 {[%clk 0:02:23.7]} 9. exd5 {[%clk 0:02:33.7]} 9... Bd6 {[%clk 0:02:24.3]}
10. Nf5 {[%clk 0:02:19.5]} 10... Qf6 {[%clk 0:02:23.5]} 11. Nxd6+ {[%clk
0:02:09.8]} 11... Qxd6 {[%clk 0:02:24.4]} 12. Bf4 {[%clk 0:02:09.2]} 12... Qe7+
{[%clk 0:02:11.1]} 13. Kd2 {[%clk 0:01:59.8]} 13... Qf6 {[%clk 0:02:06.2]} 14.
Re1+ {[%clk 0:01:45.7]} 14... Ne7 {[%clk 0:01:13.2]} 15. Rxe7+ {[%clk 0:00:31]}
15... Qxe7 {[%clk 0:01:00.5]} 16. d6 {[%clk 0:00:31.6]} 16... Qe6 {[%clk
0:00:53.9]} 17. Bxb7 {[%clk 0:00:31.3]} 17... Ra7 {[%clk 0:00:53.9]} 18. Qf3
{[%clk 0:00:31.4]} 18... O-O {[%clk 0:00:49.7]} 19. Be4 {[%clk 0:00:22.4]} 19...
a5 {[%clk 0:00:36.2]} 20. Re1 {[%clk 0:00:21.5]} 20... Qxa2 {[%clk 0:00:27.5]}
21. Be5 {[%clk 0:00:16.4]} 21... Nc6 {[%clk 0:00:20.5]} 22. Bxc6 {[%clk
0:00:10.7]} 22... dxc6 {[%clk 0:00:21.4]} 23. b3 {[%clk 0:00:08.1]} 23... a4
{[%clk 0:00:19.8]} 24. Ra1 {[%clk 0:00:07.7]} 24... axb3 {[%clk 0:00:19.6]} 25.
Rxa2 {[%clk 0:00:08.3]} 25... bxa2 {[%clk 0:00:20.5]} 26. Ba1 {[%clk 0:00:08.7]}
26... Rd8 {[%clk 0:00:20.3]} 27. Qf4 {[%clk 0:00:08.2]} 27... Rad7 {[%clk
0:00:19.7]} 28. Qxb4 {[%clk 0:00:07.5]} 28... Rxd6+ {[%clk 0:00:20.2]} 29. Kc1
{[%clk 0:00:08.1]} 29... Rd1+ {[%clk 0:00:20.4]} 30. Kb2 {[%clk 0:00:08.5]}
30... Rb1+ {[%clk 0:00:21]} 31. Ka3 {[%clk 0:00:05.5]} 31... Rxb4 {[%clk
0:00:21.9]} 32. Kxb4 {[%clk 0:00:05.8]} 32... Rd1 {[%clk 0:00:22.5]} 0-1

[Event "*** Titled Tuesday Blitz"]
[Site "Chess.com"]
[Date "2020.11.03"]
[Round "10"]
[White "pedromartinez91"]
[Black "BegmuratovKh2010"]
[Result "1-0"]
[WhiteElo "2597"]
[BlackElo "2460"]
[TimeControl "180+1"]
[EndTime "11:59:23 PST"]
[Termination "pedromartinez91 won by resignation"]

1. b3 {[%clk 0:02:49.2]} 1... Nf6 {[%clk 0:02:59.6]} 2. Bb2 {[%clk 0:02:48.5]}
2... g6 {[%clk 0:03:00.5]} 3. Bxf6 {[%clk 0:02:49]} 3... exf6 {[%clk 0:03:01.4]}
4. d4 {[%clk 0:02:49.9]} 4... Bg7 {[%clk 0:03:02]} 5. Nd2 {[%clk 0:02:50.8]}
5... O-O {[%clk 0:03:02.6]} 6. e3 {[%clk 0:02:51.7]} 6... d5 {[%clk 0:03:02.8]}
7. Ngf3 {[%clk 0:02:52.6]} 7... b6 {[%clk 0:02:59.1]} 8. h4 {[%clk 0:02:52.5]}
8... h5 {[%clk 0:02:57]} 9. g3 {[%clk 0:02:53]} 9... c5 {[%clk 0:02:56.8]} 10.
Bh3 {[%clk 0:02:52.2]} 10... Bxh3 {[%clk 0:02:55.2]} 11. Rxh3 {[%clk 0:02:53.1]}
11... Nc6 {[%clk 0:02:55.8]} 12. c3 {[%clk 0:02:52.6]} 12... f5 {[%clk
0:02:55.5]} 13. Kf1 {[%clk 0:02:52.1]} 13... Rc8 {[%clk 0:02:52.7]} 14. Kg2
{[%clk 0:02:52.4]} 14... cxd4 {[%clk 0:02:52.1]} 15. cxd4 {[%clk 0:02:53.3]}
15... Nb4 {[%clk 0:02:51.9]} 16. Ne1 {[%clk 0:02:53.2]} 16... Qc7 {[%clk
0:02:45.1]} 17. a3 {[%clk 0:02:51.8]} 17... Nc2 {[%clk 0:02:44.2]} 18. Nxc2
{[%clk 0:02:45]} 18... Qxc2 {[%clk 0:02:45.1]} 19. Rh1 {[%clk 0:02:45.3]} 19...
Qxd1 {[%clk 0:02:24.8]} 20. Rhxd1 {[%clk 0:02:46.2]} 20... Rc2 {[%clk
0:02:19.9]} 21. Nf3 {[%clk 0:02:45.4]} 21... Rfc8 {[%clk 0:02:18.9]} 22. Ne1
{[%clk 0:02:45.4]} 22... R2c3 {[%clk 0:02:16.1]} 23. Rab1 {[%clk 0:02:39.5]}
23... Bf8 {[%clk 0:02:14.3]} 24. a4 {[%clk 0:02:36.3]} 24... a6 {[%clk
0:02:07.8]} 25. Nd3 {[%clk 0:02:36.1]} 25... Bd6 {[%clk 0:01:59.8]} 26. Rbc1
{[%clk 0:02:35.4]} 26... Kf8 {[%clk 0:01:56.8]} 27. Kf1 {[%clk 0:02:32.7]} 27...
Ba3 {[%clk 0:01:52]} 28. Rb1 {[%clk 0:02:19.4]} 28... Ke7 {[%clk 0:01:43.3]} 29.
Ke2 {[%clk 0:02:17.1]} 29... Kd6 {[%clk 0:01:38.6]} 30. Rd2 {[%clk 0:02:17.2]}
30... b5 {[%clk 0:01:25.8]} 31. axb5 {[%clk 0:02:10.1]} 31... axb5 {[%clk
0:01:26.7]} 32. b4 {[%clk 0:02:10.7]} 32... f6 {[%clk 0:01:10.6]} 33. Nc5 {[%clk
0:02:08.8]} 33... Rc4 {[%clk 0:01:06]} 34. Nd3 {[%clk 0:01:56.8]} 34... g5
{[%clk 0:01:01.3]} 35. Ra2 {[%clk 0:01:54.6]} 35... Rc2+ {[%clk 0:00:57.4]} 36.
Rxc2 {[%clk 0:01:54.9]} 36... Rxc2+ {[%clk 0:00:58.3]} 37. Kf1 {[%clk
0:01:50.8]} 37... Rd2 {[%clk 0:00:51.5]} 38. Rb3 {[%clk 0:01:50.2]} 38... Ra2
{[%clk 0:00:47.8]} 39. Kg2 {[%clk 0:01:50.1]} 39... Ra1 {[%clk 0:00:44.4]} 40.
Kf3 {[%clk 0:01:50.3]} 40... Bc1 {[%clk 0:00:39.7]} 41. Ke2 {[%clk 0:01:47.3]}
41... Ra2+ {[%clk 0:00:34.8]} 42. Kd1 {[%clk 0:01:44.4]} 42... Ba3 {[%clk
0:00:34.5]} 43. Ke1 {[%clk 0:01:43.1]} 43... gxh4 {[%clk 0:00:30.3]} 44. gxh4
{[%clk 0:01:42.6]} 44... Ra1+ {[%clk 0:00:22.1]} 45. Ke2 {[%clk 0:01:42.9]}
45... Ra2+ {[%clk 0:00:20.1]} 46. Kf3 {[%clk 0:01:43.2]} 46... Ra1 {[%clk
0:00:18.9]} 47. Kf4 {[%clk 0:01:43.5]} 47... Ke6 {[%clk 0:00:12.5]} 48. Nc5+
{[%clk 0:01:43.6]} 48... Kf7 {[%clk 0:00:12.7]} 49. Kxf5 {[%clk 0:01:43.9]}
49... Ra2 {[%clk 0:00:12.2]} 50. Nd3 {[%clk 0:01:43.7]} 50... Ra1 {[%clk
0:00:10.9]} 51. Kf4 {[%clk 0:01:44]} 51... Bc1 {[%clk 0:00:10.1]} 52. Rc3 {[%clk
0:01:39.7]} 52... Bd2 {[%clk 0:00:08.3]} 53. Rc2 {[%clk 0:01:37.9]} 53... Rd1
{[%clk 0:00:06.7]} 54. Kf3 {[%clk 0:01:35.1]} 54... Rh1 {[%clk 0:00:03.6]} 55.
Rxd2 {[%clk 0:01:33.7]} 55... Rxh4 {[%clk 0:00:03.7]} 56. Nf4 {[%clk 0:01:33.6]}
56... Kg7 {[%clk 0:00:02.6]} 57. Nxd5 {[%clk 0:01:33.7]} 57... Kh7 {[%clk
0:00:02]} 58. Nf4 {[%clk 0:01:33.9]} 58... Kh6 {[%clk 0:00:02.9]} 59. d5 {[%clk
0:01:34.3]} 59... Kg5 {[%clk 0:00:03.8]} 60. d6 {[%clk 0:01:34.8]} 60... Rg4
{[%clk 0:00:04.6]} 61. d7 {[%clk 0:01:35.1]} 1-0

[Event "*** Titled Tuesday Blitz"]
[Site "Chess.com"]
[Date "2020.11.03"]
[Round "10"]
[White "kot60"]
[Black "Na_binci"]
[Result "1-0"]
[WhiteElo "2364"]
[BlackElo "2158"]
[TimeControl "180+1"]
[EndTime "11:59:28 PST"]
[Termination "kot60 won by resignation"]

1. e4 {[%clk 0:03:00.3]} 1... c5 {[%clk 0:02:59.2]} 2. Nc3 {[%clk 0:02:59.6]}
2... d6 {[%clk 0:02:56.8]} 3. Bc4 {[%clk 0:02:59.4]} 3... g6 {[%clk 0:02:55.7]}
4. d3 {[%clk 0:02:59.7]} 4... Bg7 {[%clk 0:02:55.7]} 5. f4 {[%clk 0:03:00.3]}
5... Nc6 {[%clk 0:02:54.6]} 6. f5 {[%clk 0:03:00.7]} 6... Nf6 {[%clk 0:02:52.4]}
7. Nf3 {[%clk 0:03:00.3]} 7... O-O {[%clk 0:02:49.7]} 8. fxg6 {[%clk 0:02:59.1]}
8... hxg6 {[%clk 0:02:49]} 9. O-O {[%clk 0:03:00]} 9... Nd4 {[%clk 0:02:47.8]}
10. Ng5 {[%clk 0:02:55.6]} 10... Rb8 {[%clk 0:02:40.1]} 11. a4 {[%clk
0:02:53.7]} 11... a6 {[%clk 0:02:39.3]} 12. a5 {[%clk 0:02:53.1]} 12... e6
{[%clk 0:02:30.8]} 13. Ne2 {[%clk 0:02:44.4]} 13... d5 {[%clk 0:02:19.3]} 14.
Nxd4 {[%clk 0:02:38.6]} 14... dxc4 {[%clk 0:02:05.1]} 15. Ndf3 {[%clk
0:02:36.5]} 15... cxd3 {[%clk 0:02:04.2]} 16. cxd3 {[%clk 0:02:36.2]} 16... b5
{[%clk 0:01:27.1]} 17. axb6 {[%clk 0:02:30.3]} 17... Qxb6 {[%clk 0:01:17.8]} 18.
Kh1 {[%clk 0:02:29.3]} 18... Bb7 {[%clk 0:01:06.8]} 19. Bf4 {[%clk 0:02:17.6]}
19... Rbd8 {[%clk 0:01:05.9]} 20. Be5 {[%clk 0:02:14.7]} 20... Nxe4 {[%clk
0:01:00]} 21. Bxg7 {[%clk 0:02:04.2]} 21... Kxg7 {[%clk 0:01:00.9]} 22. Qc2
{[%clk 0:01:42.8]} 22... Nf6 {[%clk 0:00:47.7]} 23. Ne5 {[%clk 0:01:36.1]} 23...
Qb4 {[%clk 0:00:37.6]} 24. Qf2 {[%clk 0:01:18.8]} 24... Ng4 {[%clk 0:00:27.2]}
25. Qh4 {[%clk 0:01:09.3]} 25... Nh6 {[%clk 0:00:20.1]} 26. Nxe6+ {[%clk
0:00:36.1]} 26... fxe6 {[%clk 0:00:16.6]} 27. Qe7+ {[%clk 0:00:35.9]} 27... Kg8
{[%clk 0:00:14.1]} 28. Nxg6 {[%clk 0:00:30.9]} 28... Qg4 {[%clk 0:00:13.8]} 29.
Rxf8+ {[%clk 0:00:28.5]} 29... Rxf8 {[%clk 0:00:12.5]} 30. Qxf8+ {[%clk
0:00:27.9]} 30... Kh7 {[%clk 0:00:12.8]} 31. Qe7+ {[%clk 0:00:24.9]} 31... Kxg6
{[%clk 0:00:11.6]} 32. Qxb7 {[%clk 0:00:24.5]} 32... Qf4 {[%clk 0:00:08.4]} 33.
Qe4+ {[%clk 0:00:24]} 33... Qxe4 {[%clk 0:00:07.9]} 34. dxe4 {[%clk 0:00:24.9]}
34... Kf6 {[%clk 0:00:07.7]} 35. Rxa6 {[%clk 0:00:24.6]} 35... Ke5 {[%clk
0:00:08.3]} 36. Rc6 {[%clk 0:00:24.5]} 36... Kd4 {[%clk 0:00:06.3]} 37. Rxe6
{[%clk 0:00:24]} 37... Ng4 {[%clk 0:00:06.7]} 38. h4 {[%clk 0:00:21.5]} 38...
Nf2+ {[%clk 0:00:07]} 39. Kg1 {[%clk 0:00:20.2]} 39... Nxe4 {[%clk 0:00:07.9]}
40. h5 {[%clk 0:00:19.5]} 1-0

[Event "*** Titled Tuesday Blitz"]
[Site "Chess.com"]
[Date "2020.11.03"]
[Round "10"]
[White "fabianvivasz"]
[Black "Harry_Rakkel"]
[Result "0-1"]
[WhiteElo "2371"]
[BlackElo "2618"]
[TimeControl "180+1"]
[EndTime "11:59:29 PST"]
[Termination "Harry_Rakkel won on time"]

1. e4 {[%clk 0:02:59.8]} 1... c5 {[%clk 0:02:59.7]} 2. Nc3 {[%clk 0:02:58.6]}
2... e6 {[%clk 0:02:58.2]} 3. Nf3 {[%clk 0:02:57.2]} 3... a6 {[%clk 0:02:57.8]}
4. d4 {[%clk 0:02:55.3]} 4... cxd4 {[%clk 0:02:57.2]} 5. Nxd4 {[%clk 0:02:55.9]}
5... b5 {[%clk 0:02:57.5]} 6. Bd3 {[%clk 0:02:55]} 6... Bb7 {[%clk 0:02:53.7]}
7. O-O {[%clk 0:02:54.7]} 7... Ne7 {[%clk 0:02:52.8]} 8. Kh1 {[%clk 0:02:42.3]}
8... Nec6 {[%clk 0:02:52.1]} 9. Nxc6 {[%clk 0:02:37.4]} 9... Nxc6 {[%clk
0:02:51.1]} 10. f4 {[%clk 0:02:37.2]} 10... d6 {[%clk 0:02:40.6]} 11. Qg4 {[%clk
0:01:45.7]} 11... h5 {[%clk 0:02:37.3]} 12. Qh3 {[%clk 0:01:39.2]} 12... g6
{[%clk 0:02:34]} 13. f5 {[%clk 0:01:30.2]} 13... gxf5 {[%clk 0:02:33.1]} 14.
exf5 {[%clk 0:01:29.3]} 14... e5 {[%clk 0:02:32.3]} 15. Be4 {[%clk 0:01:18.5]}
15... Rc8 {[%clk 0:01:55.6]} 16. Be3 {[%clk 0:01:11.3]} 16... Na5 {[%clk
0:01:46.3]} 17. Rad1 {[%clk 0:00:55.4]} 17... Rxc3 {[%clk 0:01:37.3]} 18. Bxb7
{[%clk 0:00:42.2]} 18... Rxe3 {[%clk 0:01:36.3]} 19. Qxe3 {[%clk 0:00:40.7]}
19... Nxb7 {[%clk 0:01:35.8]} 20. Qa7 {[%clk 0:00:35.6]} 20... Nc5 {[%clk
0:01:32]} 21. b4 {[%clk 0:00:32.4]} 21... Nd7 {[%clk 0:01:27.8]} 22. Qxa6 {[%clk
0:00:29.4]} 22... Rg8 {[%clk 0:01:27]} 23. Qxb5 {[%clk 0:00:25.8]} 23... Qa8
{[%clk 0:01:26.3]} 24. Qd5 {[%clk 0:00:23.4]} 24... Qxd5 {[%clk 0:01:14.5]} 25.
Rxd5 {[%clk 0:00:23]} 25... Rg4 {[%clk 0:01:15.4]} 26. c3 {[%clk 0:00:17.7]}
26... Rc4 {[%clk 0:01:13.8]} 27. Rf3 {[%clk 0:00:14.8]} 27... Kd8 {[%clk
0:01:11.3]} 28. a4 {[%clk 0:00:13.4]} 28... Nb6 {[%clk 0:01:09.8]} 29. Ra5
{[%clk 0:00:13.1]} 29... e4 {[%clk 0:01:09.4]} 30. Rh3 {[%clk 0:00:11.9]} 30...
Bg7 {[%clk 0:01:02]} 31. Ra6 {[%clk 0:00:10.2]} 31... Kc7 {[%clk 0:00:59.7]} 32.
a5 {[%clk 0:00:10.7]} 32... Nc8 {[%clk 0:00:58.8]} 33. b5 {[%clk 0:00:06.6]}
33... Bxc3 {[%clk 0:00:57.7]} 34. Rc6+ {[%clk 0:00:02.3]} 34... Rxc6 {[%clk
0:00:56.9]} 35. bxc6 {[%clk 0:00:02.7]} 35... Bxa5 {[%clk 0:00:52.5]} 36. Rxh5
{[%clk 0:00:03]} 36... d5 {[%clk 0:00:50.3]} 37. Rh7 {[%clk 0:00:02.3]} 37... d4
{[%clk 0:00:48.6]} 38. Rxf7+ {[%clk 0:00:02]} 38... Kxc6 {[%clk 0:00:48.6]} 39.
Rf8 {[%clk 0:00:02.2]} 39... Nd6 {[%clk 0:00:48.1]} 40. f6 {[%clk 0:00:02]}
40... d3 {[%clk 0:00:47.9]} 0-1